bitfinex/quotes_BTCUSD_20241003
["timestamp","ask_amount","ask_price","bid_price","bid_amount"]
[1727954896653,0.37747701,60889.0,60884.0,0.26335852]
[1727954896654,0.04900701,60889.0,60884.0,0.26335852]
[1727954896865,0.164233,60889.0,60888.0,0.18725411]
[1727954899061,0.168233,60889.0,60888.0,0.18725411]
[1727954899276,0.168233,60889.0,60888.0,0.26862269]
[1727954899494,0.007,60889.0,60888.0,0.43285769]
[1727954900434,0.003,60889.0,60888.0,0.43285769]
[1727954900646,0.002,60889.0,60888.0,0.43285769]
[1727954901075,0.164225,60892.0,60888.0,0.43285769]
[1727954901282,0.04900701,60893.0,60890.0,0.16423]
[1727954901283,0.21322901,60893.0,60890.0,0.16423]
[1727954901502,0.04900701,60893.0,60892.0,0.35147911]
[1727954901729,0.04900701,60896.0,60892.0,0.51570211]
[1727954901929,0.46150167,60897.0,60893.0,0.24558958]
[1727954902132,0.02574128,60894.0,60893.0,0.08136858]
[1727954902382,0.02574128,60894.0,60893.0,0.43284469]
[1727954902642,0.001636,60898.0,60893.0,0.26862269]
[1727954902858,0.165846,60898.0,60897.0,0.18725411]
[1727954903711,0.165845,60898.0,60897.0,0.18725411]
[1727954904159,0.175845,60898.0,60897.0,0.18725411]
[1727954904577,0.183845,60898.0,60897.0,0.18825411]
[1727954907217,0.183845,60898.0,60897.0,0.001]
[1727954907671,0.66919737,60898.0,60897.0,0.001]
[1727954907892,0.79177107,60898.0,60897.0,0.001]
[1727954908124,0.66919737,60898.0,60897.0,0.001]
[1727954908343,0.69493919,60898.0,60897.0,0.001]
[1727954909046,0.8811259,60898.0,60897.0,0.001]
[1727954909282,0.8831259,60898.0,60897.0,0.001]
[1727954909498,0.85738408,60898.0,60897.0,0.001]
[1727954909946,0.442127,60891.0,60890.0,0.24828066]
[1727954910163,0.80406395,60891.0,60890.0,0.24828066]
[1727954910418,0.80406395,60891.0,60883.0,0.000818]
[1727954910419,0.164246,60884.0,60883.0,0.000818]
[1727954910661,0.400919,60884.0,60883.0,0.000818]
[1727954911090,0.37918675,60884.0,60883.0,0.000818]
[1727954911517,0.32743271,60884.0,60883.0,0.000818]
[1727954911775,0.40090894,60884.0,60883.0,0.000818]
[1727954912008,0.33443271,60884.0,60883.0,0.000818]
[1727954912216,0.40791012,60884.0,60883.0,0.000818]
[1727954912442,0.38341479,60884.0,60883.0,0.000818]
[1727954912654,0.40916212,60884.0,60883.0,0.000818]
[1727954913049,0.41516212,60884.0,60883.0,0.000818]
[1727954915507,0.38941479,60884.0,60883.0,0.000818]
[1727954916105,0.38941464,60884.0,60883.0,0.000818]
[1727954918448,0.34043271,60884.0,60883.0,0.000818]
[1727954918653,0.36618006,60884.0,60883.0,0.000818]
[1727954922908,0.34043271,60884.0,60883.0,0.000818]
[1727954925344,0.50468071,60884.0,60875.0,0.24080666]
[1727954925563,0.164267,60877.0,60875.0,0.24080666]
[1727954926005,0.164267,60877.0,60874.0,0.000819]
[1727954926213,0.328521,60879.0,60874.0,0.000819]
[1727954926421,0.164271,60875.0,60874.0,0.000819]
[1727954926852,0.164268,60876.0,60874.0,0.000819]
[1727954927081,0.164268,60876.0,60874.0,0.08073295]
[1727954927501,0.24828066,60882.0,60875.0,0.001]
[1727954927712,0.164268,60876.0,60875.0,0.001]
[1727954927846,0.24828066,60882.0,60874.0,0.08073295]
[1727954928060,0.164271,60875.0,60874.0,0.002819]
[1727954928682,0.164271,60875.0,60874.0,0.000819]
[1727954929298,0.328534,60877.0,60874.0,0.001819]
[1727954929513,0.492798,60877.0,60876.0,0.12266148]
[1727954929722,0.328538,60876.0,60874.0,0.001819]
[1727954929935,0.164271,60875.0,60874.0,0.001819]
[1727954930132,0.32745771,60875.0,60874.0,0.001819]
[1727954930551,0.35320926,60875.0,60874.0,0.001819]
[1727954931023,0.35320926,60875.0,60874.0,0.003819]
[1727954931223,0.35320926,60875.0,60874.0,0.000819]
[1727954931634,0.02975155,60875.0,60874.0,0.12348048]
[1727954931840,0.004,60875.0,60874.0,0.46718353]
[1727954932048,0.004,60875.0,60874.0,0.30291053]
[1727954932049,0.172271,60875.0,60874.0,0.30291053]
[1727954932260,0.172271,60875.0,60874.0,0.21121053]
[1727954932468,0.168271,60875.0,60874.0,0.000819]
[1727954932883,0.168271,60875.0,60874.0,0.001819]
[1727954933707,0.164271,60875.0,60874.0,0.001819]
[1727954934099,0.164271,60875.0,60874.0,0.002819]
[1727954934302,0.164271,60875.0,60874.0,0.000819]
[1727954934503,0.168271,60875.0,60874.0,0.000819]
[1727954934729,0.172271,60875.0,60874.0,0.000819]
[1727954935392,0.65344045,60875.0,60874.0,0.000819]
[1727954935612,0.75414816,60875.0,60874.0,0.000819]
[1727954935869,0.75414724,60875.0,60874.0,0.000819]
[1727954936568,0.65618176,60875.0,60874.0,0.000819]
[1727954936788,0.75414724,60875.0,60874.0,0.000819]
[1727954937277,0.67788342,60875.0,60874.0,0.000819]
[1727954937505,0.72959163,60875.0,60874.0,0.000819]
[1727954937940,0.67788342,60875.0,60874.0,0.000819]
[1727954938195,0.67916113,60875.0,60874.0,0.000819]
[1727954939214,0.70091676,60875.0,60874.0,0.000819]
[1727954939450,0.71491676,60875.0,60874.0,0.000819]
[1727954940453,0.68916113,60875.0,60874.0,0.000819]
[1727954940692,0.67116113,60875.0,60874.0,0.000819]
[1727954940924,0.69916113,60875.0,60874.0,0.001819]
[1727954941158,0.68516113,60875.0,60874.0,0.000819]
[1727954941399,0.86234784,60875.0,60874.0,0.001819]
[1727954941642,0.68516113,60875.0,60874.0,0.000819]
[1727954941885,0.83210935,60875.0,60874.0,0.000819]
[1727954942120,0.99529606,60875.0,60874.0,0.000819]
[1727954942482,0.98129606,60875.0,60874.0,0.000819]
[1727954942744,0.85034784,60875.0,60874.0,0.000819]
[1727954942957,0.68716113,60875.0,60874.0,0.000819]
[1727954943218,0.68516113,60875.0,60874.0,0.000819]
[1727954943459,0.71091787,60875.0,60874.0,0.000819]
[1727954944337,0.72491787,60875.0,60874.0,0.000819]
[1727954944545,0.87410458,60875.0,60874.0,0.000819]
[1727954944755,0.84834784,60875.0,60874.0,0.000819]
[1727954944966,0.86234784,60875.0,60874.0,0.000819]
[1727954945179,0.85034784,60875.0,60874.0,0.000819]
[1727954945810,0.86434784,60875.0,60874.0,0.000819]
[1727954946021,0.86234784,60875.0,60874.0,0.000819]
[1727954946939,0.86434784,60875.0,60874.0,0.000819]
[1727954947145,0.68716113,60875.0,60874.0,0.000819]
[1727954947355,0.67316113,60875.0,60874.0,0.000819]
[1727954947571,0.68716113,60875.0,60874.0,0.000819]
[1727954948007,0.712918,60875.0,60874.0,0.000819]
[1727954948224,0.70116113,60875.0,60874.0,0.000819]
[1727954948667,0.68716113,60875.0,60874.0,0.000819]
[1727954948889,0.73799213,60875.0,60874.0,0.000819]
[1727954950004,0.70116113,60875.0,60874.0,0.000819]
[1727954951612,0.70116113,60875.0,60874.0,1e-06]
[1727954951613,0.72691832,60875.0,60874.0,1e-06]
[1727954952093,0.87386654,60875.0,60874.0,1e-06]
[1727954952358,0.72691832,60875.0,60874.0,1e-06]
[1727954952626,0.87386654,60875.0,60874.0,1e-06]
[1727954953081,1.03705325,60875.0,60874.0,1e-06]
[1727954953306,0.89010503,60875.0,60874.0,1e-06]
[1727954953575,0.87386654,60875.0,60874.0,1e-06]
[1727954954076,0.84967973,60875.0,60874.0,1e-06]
[1727954954328,0.99662795,60875.0,60874.0,1e-06]
[1727954954577,0.99620712,60875.0,60874.0,1e-06]
[1727954954826,1.15939383,60875.0,60874.0,1e-06]
[1727954955325,1.13527464,60875.0,60874.0,1e-06]
[1727954955572,0.98874725,60875.0,60874.0,1e-06]
[1727954958592,1.01450512,60875.0,60874.0,1e-06]
[1727954959695,0.98874725,60875.0,60874.0,1e-06]
[1727954960453,0.82556054,60875.0,60874.0,1e-06]
[1727954962719,0.85131819,60875.0,60874.0,1e-06]
[1727954965203,0.99779984,60875.0,60874.0,1e-06]
[1727954965462,0.97204219,60875.0,60874.0,1e-06]
[1727954966389,0.82556054,60875.0,60874.0,1e-06]
[1727954967119,0.98874725,60875.0,60874.0,1e-06]
[1727954967357,1.13520346,60875.0,60874.0,1e-06]
[1727954967579,0.98874725,60875.0,60874.0,1e-06]
[1727954967808,0.82556054,60875.0,60874.0,1e-06]
[1727954968675,0.8513185,60875.0,60874.0,1e-06]
[1727954969571,0.82556054,60875.0,60874.0,1e-06]
[1727954972164,0.166279,60872.0,60871.0,1e-06]
[1727954972386,0.79011725,60872.0,60871.0,1e-06]
[1727954972841,0.81587621,60872.0,60871.0,1e-06]
[1727954973293,0.6526895,60872.0,60871.0,1e-06]
[1727954973714,0.6666895,60872.0,60871.0,1e-06]
[1727954974138,0.6806895,60872.0,60871.0,1e-06]
[1727954974357,0.84549609,60872.0,60871.0,1e-06]
[1727954974577,0.84570403,60872.0,60871.0,1e-06]
[1727954975888,1.00889074,60872.0,60871.0,1e-06]
[1727954976096,0.84387621,60872.0,60871.0,1e-06]
[1727954976342,0.82987621,60872.0,60871.0,1e-06]
[1727954976564,0.80411725,60872.0,60871.0,1e-06]
[1727954976846,0.81811725,60872.0,60871.0,1e-06]
[1727954977061,0.80411725,60872.0,60871.0,1e-06]
[1727954977998,0.79011725,60872.0,60871.0,1e-06]
[1727954978212,0.80411725,60872.0,60871.0,1e-06]
[1727954978436,0.81811725,60872.0,60871.0,1e-06]
[1727954978657,0.64093054,60872.0,60871.0,1e-06]
[1727954979048,0.65493054,60872.0,60871.0,1e-06]
[1727954979942,0.68068925,60872.0,60871.0,1e-06]
[1727954981067,0.65493054,60872.0,60871.0,1e-06]
[1727954981716,0.80411725,60872.0,60871.0,1e-06]
[1727954982214,0.81811725,60872.0,60871.0,1e-06]
[1727954982690,0.65493054,60872.0,60871.0,1e-06]
[1727954982902,0.53016913,60872.0,60871.0,1e-06]
[1727954983130,0.51616913,60872.0,60871.0,1e-06]
[1727954983580,0.53016913,60872.0,60871.0,1e-06]
[1727954984028,0.5279269,60872.0,60871.0,1e-06]
[1727954984247,0.5559269,60872.0,60871.0,1e-06]
[1727954984496,0.5419269,60872.0,60871.0,1e-06]
[1727954984729,0.5279269,60872.0,60871.0,1e-06]
[1727954984937,0.5419269,60872.0,60871.0,1e-06]
[1727954985151,0.5579269,60872.0,60871.0,1e-06]
[1727954985400,0.53016913,60872.0,60871.0,1e-06]
[1727954985641,0.69335584,60872.0,60871.0,1e-06]
[1727954987017,0.53016913,60872.0,60871.0,1e-06]
[1727954988821,0.55592715,60872.0,60871.0,1e-06]
[1727954989698,0.55592715,60872.0,60871.0,0.080201]
[1727954989699,0.50716913,60872.0,60871.0,0.080201]
[1727954991055,0.49316913,60872.0,60871.0,0.080201]
[1727954991303,0.97249365,60872.0,60871.0,1e-06]
[1727954991511,0.72421299,60872.0,60871.0,1e-06]
[1727954991703,0.73821299,60872.0,60871.0,1e-06]
[1727954992000,0.72421299,60872.0,60871.0,1e-06]
[1727954992186,0.74021299,60872.0,60871.0,1e-06]
[1727954992481,0.93413101,60872.0,60871.0,1e-06]
[1727954992735,0.94589022,60872.0,60871.0,1e-06]
[1727954992953,0.92216708,60872.0,60871.0,1e-06]
[1727954993394,0.90816708,60872.0,60871.0,1e-06]
[1727954993849,0.92216708,60872.0,60871.0,1e-06]
[1727954995564,0.68068975,60872.0,60871.0,1e-06]
[1727954996868,0.65493054,60872.0,60871.0,1e-06]
[1727954997095,0.81811725,60872.0,60871.0,1e-06]
[1727954998443,1.05957502,60872.0,60871.0,1e-06]
[1727955000231,1.08533656,60872.0,60871.0,1e-06]
[1727955001337,1.05957981,60872.0,60871.0,1e-06]
[1727955001566,0.8963931,60872.0,60871.0,1e-06]
[1727955002044,0.77163169,60872.0,60871.0,1e-06]
[1727955002267,0.65293054,60872.0,60871.0,1e-06]
[1727955002477,0.65493054,60872.0,60871.0,1e-06]
[1727955002696,1.0796112,60872.0,60871.0,1e-06]
[1727955002914,0.264327,60854.0,60853.0,0.24828066]
[1727955003130,0.60197854,60854.0,60853.0,0.24828066]
[1727955003347,0.287333,60852.0,60851.0,0.0813]
[1727955003571,0.65930834,60852.0,60851.0,0.0813]
[1727955003788,0.82486786,60852.0,60851.0,0.0813]
[1727955004225,0.85063192,60852.0,60851.0,0.0813]
[1727955004442,0.164349,60846.0,60845.0,0.0821]
[1727955004664,0.74906059,60846.0,60845.0,0.0821]
[1727955005121,0.60200054,60846.0,60845.0,0.0821]
[1727955005391,0.60200054,60846.0,60840.0,0.00082]
[1727955005392,0.164362,60841.0,60840.0,0.07582]
[1727955005601,0.77198625,60841.0,60840.0,0.07582]
[1727955005816,0.68950621,60841.0,60840.0,0.07582]
[1727955006034,0.62622381,60841.0,60840.0,0.07582]
[1727955006255,0.47925213,60841.0,60840.0,0.07582]
[1727955006908,0.49025213,60841.0,60840.0,0.07582]
[1727955007331,0.65343884,60841.0,60840.0,0.07582]
[1727955007594,0.87369292,60841.0,60840.0,0.07582]
[1727955007830,0.87369292,60841.0,60840.0,0.00082]
[1727955008274,0.51325213,60841.0,60840.0,0.00082]
[1727955008705,0.53802147,60841.0,60840.0,0.00082]
[1727955008970,0.55202147,60841.0,60840.0,0.00082]
[1727955009235,0.69880575,60841.0,60840.0,0.00082]
[1727955009452,0.53802147,60841.0,60840.0,0.00082]
[1727955009702,0.71520818,60841.0,60840.0,0.00082]
[1727955009944,0.68943884,60841.0,60840.0,0.00082]
[1727955010189,0.81216805,60841.0,60840.0,0.00082]
[1727955010449,0.51625213,60841.0,60840.0,0.00082]
[1727955010694,0.50225213,60841.0,60840.0,0.00082]
[1727955010929,0.51625213,60841.0,60840.0,0.00082]
[1727955011150,0.50225213,60841.0,60840.0,0.00082]
[1727955011666,0.53025213,60841.0,60840.0,0.00082]
[1727955011869,0.51625213,60841.0,60840.0,0.00082]
[1727955012081,0.50225213,60841.0,60840.0,0.00082]
[1727955012335,0.51625213,60841.0,60840.0,0.00082]
[1727955012586,0.68143884,60841.0,60840.0,0.00082]
[1727955012836,0.85193801,60841.0,60840.0,0.00082]
[1727955013077,0.89246288,60841.0,60840.0,0.00082]
[1727955013739,0.90646288,60841.0,60840.0,0.00082]
[1727955013957,1.053009,60841.0,60840.0,0.00082]
[1727955014178,0.89446288,60841.0,60840.0,0.00082]
[1727955014394,0.90846288,60841.0,60840.0,0.00082]
[1727955014605,0.89246288,60841.0,60840.0,0.00082]
[1727955014868,1.02498298,60841.0,60840.0,0.00082]
[1727955015080,0.89246288,60841.0,60840.0,0.00082]
[1727955015296,0.88269292,60841.0,60840.0,0.00082]
[1727955015533,1.02917874,60841.0,60840.0,0.00082]
[1727955015957,1.01517874,60841.0,60840.0,0.00082]
[1727955016172,1.01317874,60841.0,60840.0,0.00082]
[1727955016418,0.84999203,60841.0,60840.0,0.00082]
[1727955016638,0.71750621,60841.0,60840.0,0.00082]
[1727955018147,0.71950621,60841.0,60840.0,0.00082]
[1727955018581,0.74527718,60841.0,60840.0,0.00082]
[1727955019038,0.74327718,60841.0,60840.0,0.00082]
[1727955019267,0.90646389,60841.0,60840.0,0.00082]
[1727955020633,0.74327718,60841.0,60840.0,0.00082]
[1727955020863,0.48131968,60841.0,60840.0,0.07792]
[1727955021080,0.55449927,60841.0,60840.0,0.07792]
[1727955021296,0.55449927,60841.0,60840.0,0.00082]
[1727955021297,0.51610682,60841.0,60840.0,0.00082]
[1727955021515,0.55449927,60841.0,60840.0,0.00082]
[1727955021727,0.79561998,60841.0,60840.0,0.00082]
[1727955021941,0.69804506,60841.0,60840.0,0.00082]
[1727955022154,0.68404506,60841.0,60840.0,0.00082]
[1727955022368,0.72104506,60841.0,60840.0,0.00082]
[1727955022835,0.70704506,60841.0,60840.0,0.00082]
[1727955023022,0.69304506,60841.0,60840.0,0.00082]
[1727955023284,0.70704506,60841.0,60840.0,0.00082]
[1727955023502,0.69304506,60841.0,60840.0,0.00082]
[1727955023933,0.166373,60837.0,60836.0,0.000818]
[1727955024143,0.96432351,60837.0,60836.0,0.000818]
[1727955024380,0.96431049,60837.0,60836.0,0.000818]
[1727955024609,1.02533707,60837.0,60836.0,1e-06]
[1727955024833,0.98883461,60837.0,60836.0,1e-06]
[1727955025063,0.84244484,60837.0,60836.0,1e-06]
[1727955025282,0.47664608,60830.0,60828.0,0.000818]
[1727955025504,0.92663692,60830.0,60828.0,0.000818]
[1727955025709,0.92463692,60830.0,60828.0,0.000818]
[1727955025938,0.80278977,60830.0,60828.0,0.000818]
[1727955026628,0.81678977,60830.0,60828.0,0.000818]
[1727955027258,0.81878977,60830.0,60828.0,0.000818]
[1727955027481,0.9162234,60830.0,60828.0,0.000818]
[1727955027712,0.9302234,60830.0,60828.0,0.000818]
[1727955028371,0.81878977,60830.0,60828.0,0.000818]
[1727955028614,0.84456498,60830.0,60828.0,0.000818]
[1727955028826,0.85856498,60830.0,60828.0,0.000818]
[1727955029047,0.92962592,60830.0,60828.0,0.000818]
[1727955029266,0.90162592,60830.0,60828.0,0.000818]
[1727955029491,0.84256498,60830.0,60828.0,0.000818]
[1727955029711,0.88985071,60830.0,60828.0,0.000818]
[1727955029959,0.87785071,60830.0,60828.0,0.000818]
[1727955030172,0.89185071,60830.0,60828.0,0.000818]
[1727955030382,0.80278977,60830.0,60828.0,0.000818]
[1727955030614,0.83078977,60830.0,60828.0,0.000818]
[1727955031038,0.81678977,60830.0,60828.0,0.000818]
[1727955031465,0.87947707,60830.0,60828.0,0.000818]
[1727955031680,0.83278977,60830.0,60828.0,0.000818]
[1727955031893,0.83078977,60830.0,60828.0,0.000818]
[1727955032370,0.81678977,60830.0,60828.0,0.000818]
[1727955032580,0.86547754,60830.0,60828.0,0.000818]
[1727955032838,0.87947754,60830.0,60828.0,0.000818]
[1727955033045,0.9052522,60830.0,60828.0,0.000818]
[1727955033690,0.79183389,60830.0,60828.0,0.000818]
[1727955034549,0.74514612,60830.0,60828.0,0.000818]
[1727955034759,0.81617914,60830.0,60828.0,0.000818]
[1727955035176,0.77783479,60830.0,60828.0,0.000818]
[1727955035392,0.76606013,60830.0,60828.0,0.000818]
[1727955035614,0.91524684,60830.0,60828.0,0.000818]
[1727955035829,0.88055817,60830.0,60828.0,0.000818]
[1727955036463,0.92925194,60830.0,60828.0,0.000818]
[1727955036682,0.86539615,60830.0,60828.0,0.000818]
[1727955036890,0.92645256,60830.0,60828.0,0.000818]
[1727955037102,0.94045256,60830.0,60828.0,0.000818]
[1727955037314,0.95445256,60830.0,60828.0,0.000818]
[1727955037520,0.9788047,60830.0,60828.0,0.000818]
[1727955038011,0.81561799,60830.0,60828.0,0.000818]
[1727955038201,0.70220944,60830.0,60828.0,0.000818]
[1727955038457,0.75091558,60830.0,60828.0,0.000818]
[1727955038669,0.81504279,60830.0,60828.0,0.000818]
[1727955038877,0.74198407,60830.0,60828.0,0.000818]
[1727955039065,0.81505367,60830.0,60828.0,0.000818]
[1727955039309,0.74198407,60830.0,60828.0,0.000818]
[1727955039527,0.83939262,60830.0,60828.0,0.000818]
[1727955039749,0.9768047,60830.0,60828.0,0.000818]
[1727955040640,0.87939615,60830.0,60828.0,0.000818]
[1727955041550,0.97684495,60830.0,60828.0,0.000818]
[1727955042014,0.71620944,60830.0,60828.0,0.000818]
[1727955042442,0.81367709,60830.0,60828.0,0.000818]
[1727955042654,0.84002044,60830.0,60828.0,0.000818]
[1727955042860,0.71820944,60830.0,60828.0,0.000818]
[1727955043104,0.86579506,60830.0,60828.0,0.000818]
[1727955043339,1.02898177,60830.0,60828.0,0.000818]
[1727955043546,0.90717077,60830.0,60828.0,0.000818]
[1727955043752,1.02698177,60830.0,60828.0,0.000818]
[1727955044167,0.90717077,60830.0,60828.0,0.000818]
[1727955045424,0.88139615,60830.0,60828.0,0.000818]
[1727955045702,0.87939615,60830.0,60828.0,0.000818]
[1727955046136,0.71620944,60830.0,60828.0,0.000818]
[1727955047959,0.71620944,60830.0,60829.0,0.080218]
[1727955048653,0.74198321,60830.0,60829.0,0.080218]
[1727955049503,0.74198321,60830.0,60829.0,0.000818]
[1727955049730,0.86279977,60830.0,60829.0,0.000818]
[1727955049945,0.90336544,60830.0,60829.0,0.000818]
[1727955050383,0.86279977,60830.0,60829.0,0.000818]
[1727955050673,0.52895536,60830.0,60829.0,0.000818]
[1727955050936,0.67554569,60830.0,60829.0,0.000818]
[1727955051143,0.52895536,60830.0,60829.0,0.000818]
[1727955051267,0.51495536,60830.0,60829.0,0.000818]
[1727955051502,0.66154569,60830.0,60829.0,0.000818]
[1727955052260,0.67554569,60830.0,60829.0,0.000818]
[1727955052432,0.52895536,60830.0,60829.0,0.000818]
[1727955052637,0.55472831,60830.0,60829.0,0.000818]
[1727955052846,0.54072831,60830.0,60829.0,0.000818]
[1727955053321,0.55472831,60830.0,60829.0,0.000818]
[1727955054124,0.54072831,60830.0,60829.0,0.000818]
[1727955054994,0.41889033,60830.0,60829.0,0.179618]
[1727955055227,0.49096624,60830.0,60829.0,0.179618]
[1727955055449,0.39311738,60830.0,60829.0,0.179618]
[1727955055659,0.42896789,60830.0,60829.0,0.179618]
[1727955056082,0.34157871,60830.0,60829.0,0.179618]
[1727955056303,0.39050309,60830.0,60829.0,0.179618]
[1727955056504,0.17718671,60830.0,60829.0,0.24738665]
[1727955056714,0.33557871,60830.0,60829.0,0.24738665]
[1727955056944,0.32757871,60830.0,60829.0,0.179618]
[1727955057187,0.33457871,60830.0,60829.0,0.179618]
[1727955057627,0.007,60830.0,60829.0,0.179618]
[1727955058067,0.179392,60830.0,60829.0,0.179618]
[1727955058546,0.02576969,60830.0,60829.0,0.179618]
[1727955058753,0.19016169,60830.0,60829.0,0.179618]
[1727955058969,0.19516169,60830.0,60829.0,0.179618]
[1727955059392,0.03240769,60830.0,60829.0,0.179618]
[1727955059608,0.006638,60830.0,60829.0,0.344013]
[1727955059820,0.006638,60830.0,60829.0,0.179618]
[1727955060241,0.006638,60830.0,60829.0,0.344013]
[1727955061099,0.003638,60830.0,60829.0,0.344013]
[1727955061317,0.003638,60830.0,60829.0,0.179618]
[1727955061528,0.006638,60830.0,60829.0,0.179618]
[1727955061735,0.16903,60830.0,60829.0,0.179618]
[1727955061935,0.004638,60830.0,60829.0,0.4453406]
[1727955062143,0.001638,60830.0,60829.0,0.4453406]
[1727955062351,0.001638,60830.0,60829.0,0.4443406]
[1727955062563,0.001638,60830.0,60829.0,0.4473406]
[1727955062983,0.001638,60830.0,60829.0,0.4453406]
[1727955063199,0.001638,60830.0,60829.0,0.4473406]
[1727955063433,0.001638,60830.0,60829.0,0.345013]
[1727955064387,0.001638,60830.0,60829.0,0.344013]
[1727955064614,0.001638,60830.0,60829.0,0.345013]
[1727955064864,0.001638,60833.0,60832.0,0.164387]
[1727955065107,0.001638,60833.0,60832.0,0.52994108]
[1727955065369,0.001638,60833.0,60832.0,0.53194108]
[1727955066116,0.24828066,60844.0,60843.0,0.52201108]
[1727955066346,0.24828066,60844.0,60843.0,0.35765408]
[1727955066578,0.41262966,60846.0,60845.0,0.0943]
[1727955066818,0.41262966,60846.0,60845.0,0.1738]
[1727955067071,0.164349,60846.0,60845.0,0.20990541]
[1727955067577,0.02576345,60847.0,60845.0,0.20990541]
[1727955067818,0.164349,60846.0,60845.0,0.20990541]
[1727955068060,0.02576345,60847.0,60845.0,0.20990541]
[1727955068310,0.02576345,60847.0,60846.0,0.44300845]
[1727955068797,0.03476345,60847.0,60846.0,0.44300845]
[1727955069290,0.02576345,60847.0,60846.0,0.44300845]
[1727955069517,0.24828066,60853.0,60851.0,0.0903]
[1727955069787,0.02576222,60855.0,60852.0,0.0829]
[1727955070020,0.04892438,60863.0,60852.0,0.0829]
[1727955070021,0.04892438,60863.0,60853.0,0.0829]
[1727955070221,0.07338918,60865.0,60853.0,0.0829]
[1727955070222,0.164321,60857.0,60854.0,0.164326]
[1727955070435,0.328618,60861.0,60856.0,0.0979]
[1727955070645,0.164314,60859.0,60857.0,0.0761]
[1727955070857,0.16318671,60861.0,60857.0,0.0761]
[1727955071108,0.164311,60860.0,60859.0,0.0761]
[1727955071748,0.164309,60861.0,60859.0,0.0761]
[1727955071960,0.328604,60864.0,60859.0,0.240413]
[1727955072197,0.164306,60862.0,60861.0,0.0767]
[1727955072399,0.164306,60862.0,60861.0,0.16389121]
[1727955072640,0.164306,60862.0,60861.0,0.15289121]
[1727955072858,0.164306,60862.0,60861.0,0.13889121]
[1727955073494,0.170306,60862.0,60861.0,0.13889121]
[1727955073941,0.006,60862.0,60861.0,0.13889121]
[1727955074368,0.006,60862.0,60861.0,0.30319921]
[1727955074584,0.006,60862.0,60861.0,0.30525943]
[1727955074790,0.02575677,60863.0,60861.0,0.30525943]
[1727955074993,0.19005977,60863.0,60862.0,0.05288178]
[1727955075200,0.164303,60863.0,60862.0,0.05288178]
[1727955075420,0.164304,60863.0,60861.0,0.13889121]
[1727955075838,0.005,60863.0,60861.0,0.13889121]
[1727955076039,0.005,60863.0,60861.0,0.0517]
[1727955076040,0.007,60863.0,60861.0,0.0517]
[1727955076295,0.002,60863.0,60861.0,0.0517]
[1727955076734,0.005,60863.0,60861.0,0.0517]
[1727955076947,0.169304,60863.0,60861.0,0.0517]
[1727955077354,0.167304,60863.0,60861.0,0.0517]
[1727955077586,0.164306,60862.0,60861.0,0.0517]
[1727955078459,0.19006186,60862.0,60861.0,0.0517]
[1727955078694,0.02575586,60862.0,60861.0,0.0517]
[1727955078987,0.02575586,60862.0,60861.0,0.33282201]
[1727955079232,0.02575586,60862.0,60861.0,0.16851401]
[1727955079469,0.02575586,60862.0,60861.0,0.33610783]
[1727955079685,0.24828066,60868.0,60861.0,0.33610783]
[1727955079686,0.164295,60866.0,60862.0,0.164303]
[1727955080170,0.328573,60870.0,60865.0,0.164297]
[1727955080413,0.164285,60870.0,60867.0,0.164292]
[1727955080627,0.001638,60871.0,60870.0,0.164284]
[1727955080836,0.001638,60871.0,60870.0,0.33666924]
[1727955081055,0.001638,60871.0,60870.0,0.333384]
[1727955081261,0.001638,60871.0,60870.0,0.45116361]
[1727955081945,0.004638,60871.0,60870.0,0.45116361]
[1727955082566,0.004638,60871.0,60870.0,0.45116361]
[1727955083657,0.004638,60871.0,60870.0,0.45316361]
[1727955084360,0.001638,60871.0,60870.0,0.61635032]
[1727955084580,0.001638,60871.0,60870.0,0.61735032]
[1727955084783,0.001638,60871.0,60870.0,0.61935032]
[1727955084999,0.001638,60871.0,60870.0,0.61435032]
[1727955085218,0.001638,60871.0,60870.0,0.45116361]
[1727955085429,0.003638,60871.0,60870.0,0.354384]
[1727955085862,0.002638,60871.0,60870.0,0.345384]
[1727955086496,0.33010571,60871.0,60870.0,0.012]
[1727955086943,0.328577,60869.0,60865.0,0.0823]
[1727955087161,0.328571,60870.0,60865.0,0.0823]
[1727955087162,0.164291,60868.0,60866.0,0.0174519]
[1727955087592,0.002638,60871.0,60870.0,0.164284]
[1727955087820,0.007638,60871.0,60870.0,0.164284]
[1727955088286,0.02738935,60871.0,60870.0,0.164284]
[1727955088539,0.02738935,60871.0,60870.0,0.2843689]
[1727955088777,0.02738935,60871.0,60870.0,0.1200849]
[1727955089424,0.02738935,60871.0,60870.0,0.2843689]
[1727955090253,0.02738935,60871.0,60870.0,0.2873689]
[1727955090487,0.02738935,60871.0,60870.0,0.2843689]
[1727955090689,0.03038935,60871.0,60870.0,0.2843689]
[1727955090900,0.03038935,60871.0,60869.0,0.0823]
[1727955091120,0.164284,60870.0,60869.0,0.0823]
[1727955093422,0.164284,60870.0,60869.0,0.0833]
[1727955093634,0.166284,60870.0,60869.0,0.0823]
[1727955094052,0.164284,60870.0,60869.0,0.0833]
[1727955094266,0.166284,60870.0,60869.0,0.1541007]
[1727955094483,0.57775137,60870.0,60869.0,0.001]
[1727955094705,0.32947071,60870.0,60869.0,0.001]
[1727955094928,0.35522433,60870.0,60869.0,0.001]
[1727955097377,0.35686233,60870.0,60869.0,0.001]
[1727955101623,0.35686233,60870.0,60869.0,0.0792]
[1727955101624,0.167922,60870.0,60869.0,0.0792]
[1727955101841,0.167922,60870.0,60869.0,0.14831521]
[1727955102882,0.003638,60870.0,60869.0,0.14831521]
[1727955103100,0.003638,60870.0,60869.0,0.31260221]
[1727955103313,0.003638,60870.0,60869.0,0.31588755]
[1727955103925,0.003638,60870.0,60869.0,0.15160055]
[1727955104372,0.001638,60870.0,60869.0,0.31160221]
[1727955104573,0.001638,60870.0,60869.0,0.14731521]
[1727955104776,0.003638,60870.0,60869.0,0.14731521]
[1727955104970,0.003638,60870.0,60869.0,0.31160221]
[1727955105193,0.001638,60870.0,60869.0,0.31903598]
[1727955105417,0.001638,60870.0,60869.0,0.31988761]
[1727955105655,0.001638,60870.0,60869.0,0.32188761]